bitfinex/quotes_SOLUSD_20220311
["timestamp","ask_amount","ask_price","bid_price","bid_amount"]
[1647000238305,6.0,83.636,83.581,54.66341966]
[1647000238602,122.5,83.633,83.581,54.66341966]
[1647000238804,6.0,83.632,83.581,54.66341966]
[1647000239111,122.5,83.629,83.581,54.66341966]
[1647000239309,6.0,83.628,83.581,54.66341966]
[1647000240311,122.5,83.619,83.581,54.66341966]
[1647000240511,7.62457459,83.618,83.581,54.66341966]
[1647000240912,122.5,83.617,83.581,54.66341966]
[1647000241112,6.0,83.616,83.581,54.66341966]
[1647000241512,122.5,83.609,83.55,17.9424]
[1647000241711,122.5,83.609,83.54,48.7867]
[1647000241914,122.5,83.609,83.54,67.0721]
[1647000242314,6.0,83.608,83.541,5.982]
[1647000242513,6.0,83.608,83.542,61.29608207]
[1647000242719,6.0,83.608,83.543,5.982]
[1647000242914,6.0,83.617,83.55,17.9415]
[1647000243615,5.982,83.616,83.542,61.29608207]
[1647000243816,17.9435,83.61,83.542,61.29608207]
[1647000244035,122.5,83.608,83.542,61.29608207]
[1647000244341,122.5,83.606,83.542,61.29608207]
[1647000244540,122.5,83.604,83.512,5.982]
[1647000244736,122.5,83.599,83.511,28.00827644]
[1647000244936,122.5,83.589,83.512,33.99227644]
[1647000245137,5.984,83.588,83.512,28.00827644]
[1647000245439,168.75453518,83.587,83.513,46.60836884]
[1647000245836,122.5,83.569,83.513,46.60836884]
[1647000247038,128.485,83.579,83.513,46.60836884]
[1647000247239,122.5,83.569,83.513,46.60836884]
[1647000247440,5.985,83.568,83.513,46.60836884]
[1647000247640,122.5,83.567,83.513,46.60836884]
[1647000247843,5.985,83.566,83.513,46.60836884]
[1647000248042,122.5,83.559,83.513,46.60836884]
[1647000248240,4.24264503,83.557,83.513,46.60836884]
[1647000248448,4.24264503,83.557,83.496,17.729]
[1647000248643,6.0,83.556,83.491,5.986]
[1647000248848,6.0,83.556,83.481,5.986]
[1647000249043,17.9555,83.55,83.487,25.58160978]
[1647000249244,122.5,83.549,83.488,5.986]
[1647000249444,122.5,83.549,83.489,49.63829034]
[1647000249745,122.5,83.549,83.49,5.986]
[1647000250743,122.5,83.549,83.49,23.9411]
[1647000251043,6.0,83.548,83.49,23.9411]
[1647000251249,6.0,83.548,83.49,5.986]
[1647000252048,17.9555,83.55,83.49,5.986]
[1647000252251,5.986,83.593,83.491,29.05942268]
[1647000252449,45.7224,83.604,83.492,6.0]
[1647000252654,5.984,83.603,83.492,60.04525535]
[1647000252948,5.984,83.603,83.493,157.93405535]
[1647000253149,122.5,83.601,83.494,6.0]
[1647000253352,122.5,83.599,83.495,5.984]
[1647000253548,17.9477,83.59,83.52,17.946]
[1647000253847,5.984,83.589,83.521,55.03071934]
[1647000254046,5.984,83.589,83.521,58.07519891]
[1647000254247,5.984,83.589,83.522,3.04447957]
[1647000254851,17.9477,83.59,83.53,17.948]
[1647000255053,6.0,83.598,83.53,17.948]
[1647000255251,14.42,83.61,83.53,17.948]
[1647000255451,128.5,83.601,83.531,3.04447957]
[1647000255652,5.982,83.6,83.531,3.04447957]
[1647000255851,6.0,83.599,83.53,17.948]
[1647000256052,17.948,83.59,83.522,3.04447957]
[1647000256251,122.5,83.589,83.522,3.04447957]
[1647000257152,122.5,83.579,83.521,55.03071934]
[1647000257350,122.5,83.579,83.522,5.984]
[1647000257952,122.5,83.579,83.507,5.984]
[1647000258157,17.9515,83.57,83.492,27.63967957]
[1647000258357,122.5,83.569,83.497,5.985]
[1647000258560,29.807,83.578,83.498,6.0]
[1647000258952,6.0,83.577,83.499,56.32510697]
[1647000259153,122.5,83.589,83.5,6.0]
[1647000259356,6.0,83.588,83.501,5.984]
[1647000259555,5.984,83.587,83.502,6.0]
[1647000259760,6.0,83.586,83.503,5.984]
[1647000259954,5.984,83.585,83.504,6.0]
[1647000260154,5.984,83.588,83.505,5.984]
[1647000260454,122.5,83.579,83.506,6.0]
[1647000260656,6.0,83.578,83.506,6.0]
[1647000260858,5.985,83.586,83.506,9.04447957]
[1647000261155,5.985,83.586,83.507,9.04447957]
[1647000261355,23.4473,83.587,83.508,5.984]
[1647000261556,23.4473,83.587,83.51,17.9517]
[1647000261755,122.5,83.586,83.511,11.984]
[1647000261956,6.0,83.585,83.511,11.984]
[1647000262156,122.5,83.586,83.512,3.04447957]
[1647000262359,6.0,83.585,83.513,11.984]
[1647000262781,122.5,83.579,83.513,11.984]
[1647000263160,6.0,83.578,83.513,11.984]
[1647000263357,17.9491,83.58,83.513,11.984]
[1647000263558,6.0,83.579,83.513,11.984]
[1647000263761,17.9491,83.58,83.513,11.984]
[1647000263957,6.0,83.579,83.514,3.04447957]
[1647000264158,122.5,83.579,83.52,17.9501]
[1647000264360,122.5,83.569,83.521,5.984]
[1647000264559,128.95862219,83.569,83.515,5.984]
[1647000265461,1.64636517,83.624,83.516,9.04447957]
[1647000265662,1.64636517,83.64,83.517,128.482]
[1647000265862,1.64636517,83.638,83.525,122.5]
[1647000266059,5.982,83.637,83.55,17.9371]
[1647000266259,42.08259869,83.639,83.552,59.64219237]
[1647000266459,122.5,83.635,83.553,11.981]
[1647000266659,17.9397,83.63,83.553,15.02547957]
[1647000266861,122.5,83.629,83.554,3.04447957]
[1647000267062,122.5,83.627,83.555,6.0]
[1647000267262,5.981,83.626,83.56,17.9434]
[1647000267463,6.0,83.625,83.465,0.49]
[1647000267663,6.0,83.625,83.342,246.59878491]
[1647000267664,122.5,83.619,83.482,47.6802]
[1647000267863,1.64636517,83.606,83.482,47.6802]
[1647000268062,6.0,83.605,83.482,47.6802]
[1647000268266,6.0,83.605,83.483,64.21016955]
[1647000268267,1.64636517,83.593,83.483,64.21016955]
[1647000268466,3.5946021,83.591,83.483,64.21016955]
[1647000268665,32.87709853,83.578,83.483,64.21016955]
[1647000268863,3.5946021,83.558,83.49,17.9563]
[1647000269068,14.42,83.57,83.49,17.9563]
[1647000269267,6.0,83.569,83.491,221.76415311]
[1647000269462,6.0,83.576,83.492,6.0]
[1647000269663,5.985,83.6,83.493,73.52]
[1647000269963,6.0,83.598,83.494,6.0]
[1647000270168,122.5,83.589,83.511,54.31684909]
[1647000270385,6.0,83.588,83.511,54.31684909]
[1647000270788,5.984,83.587,83.511,54.31684909]
[1647000270987,6.0,83.586,83.511,54.31684909]
[1647000271687,6.0,83.588,83.511,54.31684909]
[1647000271888,5.984,83.587,83.511,54.31684909]
[1647000272089,122.5,83.579,83.52,17.9498]
[1647000272289,122.5,83.576,83.52,17.9498]
[1647000272489,6.0,83.575,83.52,17.9498]
[1647000273296,6.0,83.575,83.5,59.8179]
[1647000273501,122.5,83.569,83.455,23.0913]
[1647000273692,6.0,83.568,83.455,17.5967]
[1647000273899,122.5,83.567,83.433,122.5]
[1647000274092,1.64636517,83.559,83.427,25.51795311]
[1647000274293,14.42,83.55,83.427,25.51795311]
[1647000274500,14.42,83.54,83.422,59.52423272]
[1647000274695,24.8014,83.539,83.422,59.52423272]
[1647000274898,17.9722,83.51,83.422,59.52423272]
[1647000275193,122.5,83.499,83.422,59.52423272]
[1647000275597,122.5,83.487,83.392,122.5]
[1647000275806,122.5,83.487,83.393,6.0]
[1647000276196,122.5,83.479,83.393,6.0]
[1647000276394,122.5,83.469,83.38,6.0]
[1647000276607,122.5,83.467,83.374,64.05963263]
[1647000276793,122.5,83.467,83.375,6.0]
[1647000276993,25.93179223,83.468,83.375,6.0]
[1647000277195,25.93179223,83.468,83.38,17.9759]
[1647000277392,25.93179223,83.468,83.376,19.07054029]
[1647000277393,25.93179223,83.468,83.381,6.0]
[1647000277593,25.93179223,83.468,83.381,25.07054029]
[1647000277792,25.93179223,83.468,83.382,141.57054029]
[1647000277995,25.93179223,83.468,83.383,6.0]
[1647000278197,122.5,83.467,83.383,25.07054029]
[1647000278402,122.5,83.467,83.383,19.07054029]
[1647000278597,6.0,83.466,83.375,3.04447957]
[1647000278797,6.0,83.466,83.384,3.04447957]
[1647000279400,122.5,83.459,83.384,3.04447957]
[1647000279701,122.5,83.449,83.376,6.0]
[1647000279900,122.5,83.446,83.375,6.0]
[1647000280106,6.0,83.445,83.375,6.0]
[1647000280505,6.0,83.445,83.376,3.04447957]
[1647000280703,6.0,83.445,83.377,6.0]
[1647000281200,6.0,83.445,83.378,3.04447957]
[1647000281401,6.0,83.445,83.38,17.9771]
[1647000281808,6.0,83.445,83.381,3.04447957]
[1647000282202,122.5,83.439,83.381,3.04447957]
[1647000282402,122.5,83.439,83.377,6.0]
[1647000282403,6.0,83.438,83.377,6.0]
[1647000282603,6.0,83.438,83.367,6.0]
[1647000283202,6.0,83.438,83.368,53.90156117]
[1647000283400,6.0,83.438,83.369,6.0]
[1647000283802,6.0,83.438,83.368,3.04447957]
[1647000284003,6.0,83.438,83.32,80.62657478]
[1647000284004,6.0,83.438,83.356,3.04447957]
[1647000284203,122.5,83.436,83.309,3.04447957]
[1647000284402,5.997,83.435,83.309,3.04447957]
[1647000284603,6.0,83.434,83.291,19.07054029]
[1647000284812,10.5399084,83.419,83.311,59.93852995]
[1647000285004,6.0,83.418,83.311,59.93852995]
[1647000285202,6.0,83.418,83.312,20.00647664]
[1647000285402,10.5399084,83.419,83.312,38.15434701]
[1647000285603,6.0,83.418,83.313,21.3533908]
[1647000285805,6.0,83.418,83.341,60.55989493]
[1647000286404,6.0,83.418,83.342,3.04447957]
[1647000286605,6.0,83.419,83.342,3.04447957]
[1647000286807,6.0,83.419,83.35,17.984]
[1647000287011,6.0,83.433,83.351,6.0]
[1647000287206,6.0,83.433,83.36,59.9264]
[1647000287405,6.0,83.433,83.361,52.40645607]
[1647000287606,6.0,83.438,83.361,52.40645607]
[1647000287805,6.0,83.439,83.362,6.0]
[1647000288006,6.0,83.439,83.362,9.04447957]
[1647000288207,6.0,83.439,83.37,17.978]
[1647000288407,47.2044,83.456,83.371,6.0]
[1647000288613,6.0,83.455,83.371,9.04447957]
[1647000288810,14.42,83.48,83.371,9.04447957]
[1647000289005,6.0,83.478,83.372,3.04447957]
[1647000289211,5.993,83.477,83.39,17.9749]
[1647000289413,5.992,83.508,83.392,55.86195305]
[1647000289612,6.0,83.507,83.4,59.8738]
[1647000289817,5.99,83.528,83.402,5.4930821]
[1647000290013,6.0,83.527,83.404,196.02]
[1647000290214,6.0,83.528,83.406,196.02]
[1647000290514,26.68761931,83.527,83.411,5.92951647]
[1647000290713,6.0,83.526,83.431,56.99981297]
[1647000290912,5.989,83.525,83.431,56.99981297]
[1647000291115,6.0,83.524,83.432,6.0]
[1647000291319,5.989,83.523,83.432,9.04447957]
[1647000291514,14.42,83.52,83.433,3.04447957]
[1647000291714,6.0,83.519,83.433,3.04447957]
[1647000292114,6.0,83.519,83.44,17.9616]
[1647000292517,6.0,83.528,83.441,9.04447957]
[1647000292715,6.0,83.528,83.45,59.8586]
[1647000293015,240.1237,83.58,83.45,59.8586]
[1647000293016,5.988,83.547,83.451,79.52]
[1647000293215,6.0,83.547,83.461,73.52]
[1647000293416,6.0,83.558,83.462,6.0]
[1647000293822,128.5,83.558,83.462,3.04447957]
[1647000294017,128.5,83.558,83.453,6.0]
[1647000294018,122.5,83.556,83.463,3.04447957]
[1647000294218,35.43596285,83.554,83.463,3.04447957]
[1647000294418,122.5,83.549,83.471,56.99981297]
[1647000294618,6.0,83.548,83.471,56.99981297]
[1647000295917,122.5,83.546,83.471,56.99981297]
[1647000296116,6.0,83.545,83.4,38.0855]
[1647000296320,122.5,83.543,83.4,23.6655]
[1647000296544,122.5,83.529,83.428,3.04447957]
[1647000296717,122.5,83.509,83.428,3.04447957]
[1647000297219,1.03573778,83.507,83.429,51.55077257]
[1647000297416,6.0,83.506,83.429,51.55077257]
[1647000297617,6.0,83.506,83.429,54.59525214]
[1647000298019,6.0,83.506,83.43,17.9677]
[1647000298420,24.1455,83.544,83.432,73.52]
[1647000298621,24.1455,83.544,83.438,73.52]
[1647000298824,24.1455,83.544,83.444,122.5]
[1647000299127,24.1455,83.544,83.451,64.65975572]
[1647000299527,122.5,83.543,83.452,6.0]
[1647000299726,122.5,83.543,83.452,9.04447957]
[1647000299928,122.5,83.543,83.453,3.04447957]
[1647000300127,6.0,83.542,83.453,3.04447957]
[1647000300331,6.0,83.542,83.47,17.9573]
[1647000300526,6.0,83.542,83.453,3.04447957]
[1647000300527,128.76292667,83.539,83.453,3.04447957]
[1647000300728,6.0,83.538,83.453,3.04447957]
[1647000301332,6.0,83.538,83.46,17.9615]
[1647000301630,14.42,83.54,83.47,59.8398]
[1647000301827,6.0,83.539,83.47,59.8398]
[1647000302026,6.0,83.539,83.461,9.04447957]
[1647000302227,29.23682206,83.538,83.461,3.04447957]
[1647000302429,128.5,83.537,83.462,3.04447957]
[1647000302632,128.5,83.537,83.47,17.9596]
[1647000302836,128.5,83.537,83.451,64.65975572]
[1647000303631,5.988,83.536,83.451,64.65975572]
[1647000303835,122.5,83.529,83.451,64.65975572]
[1647000304044,122.5,83.519,83.451,64.65975572]
[1647000304246,14.42,83.52,83.451,64.65975572]
[1647000304247,122.5,83.517,83.451,64.65975572]
[1647000304446,6.0,83.516,83.451,64.65975572]
[1647000307049,17.9683,83.51,83.451,64.65975572]
[1647000307249,17.9683,83.51,83.421,5.989]
[1647000307250,122.5,83.499,83.42,3.04447957]
[1647000307449,128.49,83.499,83.396,23.9429]
[1647000307650,6.0,83.498,83.4,3.04447957]
[1647000307850,5.99,83.497,83.401,5.99]
[1647000308055,6.0,83.496,83.401,5.99]
[1647000308255,122.5,83.489,83.402,46.76985263]
[1647000308455,14.42,83.48,83.403,5.99]
[1647000308652,122.5,83.477,83.403,5.99]
[1647000308852,122.5,83.477,83.402,46.76985263]
[1647000309058,6.0,83.476,83.403,3.04447957]
[1647000309459,17.976,83.47,83.403,3.04447957]
[1647000309652,128.5,83.469,83.402,46.76985263]
[1647000309854,6.0,83.469,83.402,46.76985263]
[1647000310454,6.0,83.469,83.41,17.9729]
[1647000310857,6.0,83.469,83.411,3.04447957]
[1647000311055,6.0,83.489,83.412,5.992]
[1647000311455,6.0,83.489,83.413,3.04447957]
[1647000311761,31.65790931,83.488,83.413,3.04447957]
[1647000311955,6.0,83.487,83.43,17.9663]
[1647000312156,128.5,83.487,83.431,52.20272398]
[1647000313557,128.5,83.487,83.413,3.04447957]
[1647000313961,5.99,83.486,83.393,3.04447957]
[1647000314159,6.0,83.485,83.393,3.04447957]
[1647000314363,4.81379132,83.468,83.394,55.40437236]
[1647000314562,6.0,83.467,83.394,55.40437236]
[1647000315362,122.5,83.459,83.4,17.9753]
[1647000315565,6.0,83.458,83.394,55.40437236]
[1647000315963,6.0,83.458,83.373,3.04447957]
[1647000315964,122.5,83.457,83.373,3.04447957]
[1647000316170,6.0,83.456,83.346,5.994]
[1647000316362,6.0,83.456,83.35,17.9866]
[1647000316363,17.9799,83.45,83.35,17.9866]
[1647000316566,134.495,83.449,83.343,21.29447957]
[1647000316764,122.5,83.429,83.344,5.995]
[1647000316978,122.5,83.419,83.334,49.59392331]
[1647000317362,6.0,83.418,83.334,49.59392331]
[1647000317563,122.5,83.397,83.33,17.991]
[1647000317764,14.42,83.39,83.313,3.04447957]
[1647000317967,128.5,83.389,83.313,3.04447957]
[1647000318165,128.5,83.389,83.295,3.04447957]
[1647000318365,122.5,83.387,83.295,3.04447957]
[1647000318566,17.9973,83.37,83.3,17.9973]
[1647000318764,26.3558435,83.368,83.3,17.9973]
[1647000318964,6.0,83.367,83.3,17.9973]
[1647000319166,6.0,83.367,83.301,3.04447957]
[1647000319967,17.9994,83.36,83.301,3.04447957]
[1647000320165,6.0,83.367,83.296,54.43729444]
[1647000320166,6.0,83.359,83.296,54.43729444]
[1647000320367,6.0,83.367,83.297,6.0]
[1647000320567,14.42,83.36,83.297,6.0]
[1647000320767,6.0,83.359,83.297,6.0]
[1647000321173,6.0,83.359,83.298,3.04447957]
[1647000321370,12.0,83.387,83.299,6.0]
[1647000321571,14.42,83.39,83.299,6.0]
[1647000321768,14.42,83.39,83.3,34.86956589]
[1647000321970,14.42,83.39,83.301,6.0]
[1647000322170,33.19326771,83.387,83.32,17.9907]
[1647000322369,33.19326771,83.387,83.322,64.81644419]
[1647000323169,14.42,83.39,83.33,17.991]
[1647000323375,14.42,83.41,83.33,17.991]
[1647000323571,6.0,83.409,83.331,3.04447957]
[1647000323769,6.0,83.409,83.332,6.0]
[1647000324176,82.43582595,83.446,83.333,3.29447957]
[1647000324371,82.43582595,83.446,83.35,17.9816]
[1647000324569,82.43582595,83.446,83.351,63.56332719]
[1647000324969,5.995,83.445,83.351,66.60780676]
[1647000325169,5.995,83.445,83.352,3.04447957]
[1647000325378,5.995,83.445,83.353,6.0]
[1647000325569,6.0,83.444,83.352,3.04447957]
[1647000325770,32.4021,83.44,83.353,3.04447957]
[1647000325972,11.995,83.439,83.353,3.04447957]
[1647000326170,122.5,83.438,83.351,57.56332719]
[1647000326471,122.5,83.436,83.351,57.56332719]
[1647000326672,122.5,83.434,83.351,57.56332719]
[1647000326871,32.4106,83.42,83.351,57.56332719]
[1647000327071,14.42,83.41,83.351,57.56332719]
[1647000327372,6.0,83.409,83.33,3.04447957]
[1647000328169,6.0,83.409,83.34,17.9891]
[1647000328373,6.0,83.409,83.341,62.41814122]
[1647000328572,6.0,83.409,83.341,65.46262079]
[1647000328773,6.0,83.409,83.342,3.04447957]
[1647000328968,6.0,83.416,83.342,3.04447957]
[1647000329169,6.0,83.416,83.36,17.9841]
[1647000329570,6.0,83.416,83.361,9.04447957]
[1647000329770,6.0,83.438,83.361,9.04447957]
[1647000329973,6.0,83.438,83.362,3.04447957]
[1647000330177,6.0,83.438,83.37,17.9773]
[1647000330371,6.0,83.448,83.371,128.5]
[1647000330572,6.0,83.448,83.371,9.04447957]
[1647000330773,14.42,83.47,83.38,59.9039]
[1647000330972,6.0,83.469,83.38,59.9039]
[1647000331174,36.34018801,83.468,83.381,49.49972504]
[1647000331575,36.34018801,83.468,83.382,3.04447957]
[1647000331774,5.993,83.467,83.381,46.45524547]
[1647000331973,9.03747957,83.467,83.381,46.45524547]
[1647000332175,3.04447957,83.466,83.381,46.45524547]
[1647000332374,5.993,83.465,83.381,46.45524547]
[1647000333376,6.0,83.464,83.381,46.45524547]
[1647000333576,14.42,83.45,83.36,3.04447957]
[1647000333775,14.42,83.45,83.348,3.04447957]
[1647000333776,17.9825,83.44,83.348,3.04447957]
[1647000333976,14.42,83.43,83.348,3.04447957]
[1647000334177,6.0,83.429,83.329,3.04447957]
[1647000334476,29.3789,83.429,83.33,6.0]
[1647000334676,29.3789,83.429,83.331,57.77509215]
[1647000334879,29.3789,83.429,83.332,6.0]
[1647000335077,29.3789,83.429,83.35,17.9868]
[1647000335276,29.3789,83.429,83.351,60.15535389]
[1647000337176,29.3789,83.429,83.371,55.9317401]
[1647000338377,29.3789,83.429,83.38,17.9791]
[1647000342389,122.5,83.428,83.34,59.9452]
[1647000342594,6.0,83.427,83.304,148.7618]
[1647000342790,6.0,83.427,83.327,3.04447957]
[1647000342994,6.0,83.427,83.329,6.0]
[1647000343492,6.0,83.427,83.33,61.01270876]
[1647000343689,6.0,83.427,83.331,6.0]
[1647000344095,17.9852,83.42,83.35,17.9873]
[1647000344289,6.0,83.419,83.351,46.62045563]
[1647000344690,128.5,83.419,83.351,46.62045563]
[1647000345097,6.0,83.419,83.36,17.9847]
[1647000345314,23.3789,83.429,83.36,17.9847]
[1647000345512,6.0,83.428,83.36,17.9847]
[1647000348013,128.5,83.428,83.36,17.9847]
[1647000348513,6.0,83.428,83.36,17.9847]
[1647000348714,29.3739,83.429,83.36,17.9847]
[1647000348914,23.3789,83.429,83.38,17.9793]
[1647000349116,6.0,83.428,83.381,47.29873122]
[1647000349815,6.0,83.428,83.36,59.9309]
[1647000350016,6.0,83.428,83.37,17.9834]
[1647000350615,6.0,83.428,83.371,59.03395514]
[1647000351417,128.5,83.428,83.371,59.03395514]
[1647000351617,128.5,83.428,83.37,17.9834]
[1647000351817,5.995,83.427,83.331,6.0]
[1647000352020,6.0,83.426,83.329,6.0]
[1647000352217,5.996,83.425,83.329,6.0]
[1647000352418,122.5,83.419,83.329,6.0]
[1647000352617,6.0,83.418,83.33,51.93776946]
[1647000353019,6.0,83.418,83.331,6.0]
[1647000353222,122.5,83.416,83.33,51.93776946]
[1647000353522,122.5,83.416,83.331,6.0]
[1647000353523,6.0,83.415,83.331,6.0]
[1647000353723,6.0,83.415,83.33,51.93776946]
[1647000353921,6.0,83.415,83.331,6.0]
[1647000354222,17.9864,83.41,83.351,53.05145167]
[1647000354421,128.5,83.409,83.351,53.05145167]
[1647000355123,6.0,83.409,83.351,53.05145167]
[1647000356121,6.0,83.409,83.36,17.9862]
[1647000357931,6.0,83.416,83.36,17.9862]
[1647000358824,128.5,83.416,83.36,17.9862]
[1647000359330,6.0,83.416,83.36,17.9862]
[1647000359526,46.8503,83.417,83.36,17.9862]
[1647000359726,6.0,83.416,83.36,17.9862]
[1647000360333,46.8503,83.417,83.36,17.9862]
[1647000360530,6.0,83.416,83.36,17.9862]
[1647000361027,46.8503,83.417,83.36,17.9862]
[1647000361230,6.0,83.416,83.36,17.9862]
[1647000361431,46.8503,83.417,83.36,17.9862]
[1647000361628,6.0,83.416,83.36,17.9862]
[1647000364631,6.0,83.439,83.36,17.9862]
[1647000365031,6.0,83.439,83.361,6.0]
[1647000365232,6.0,83.439,83.36,17.9862]
[1647000365233,6.0,83.439,83.381,47.71937637]
[1647000365830,17.9811,83.43,83.334,122.5]
[1647000366030,11.996,83.429,83.335,6.0]
[1647000366430,11.996,83.429,83.36,17.9854]
[1647000366832,6.0,83.429,83.361,46.97918666]
[1647000367431,6.0,83.429,83.37,17.9827]
[1647000370537,17.9835,83.42,83.361,46.97918666]
[1647000370740,128.5,83.419,83.361,46.97918666]
[1647000370939,6.0,83.419,83.361,46.97918666]
[1647000371341,6.0,83.428,83.361,46.97918666]
[1647000371568,17.9888,83.41,83.361,46.97918666]
[1647000371768,6.0,83.409,83.361,46.97918666]
[1647000372469,6.0,83.409,83.323,5.996]
[1647000372777,122.5,83.399,83.323,5.996]
[1647000372971,14.42,83.39,83.323,5.996]
[1647000373272,122.5,83.389,83.323,5.996]
[1647000373467,6.0,83.388,83.277,5.998]
[1647000373669,122.5,83.379,83.28,18.0023]
[1647000373869,122.5,83.369,83.281,6.0]
[1647000374068,122.5,83.359,83.281,6.0]
[1647000374271,122.5,83.359,83.28,18.0023]
[1647000374470,122.5,83.357,83.28,18.0023]
[1647000374672,6.001,83.356,83.28,18.0023]
[1647000374871,18.0016,83.35,83.28,18.0023]
[1647000375070,6.001,83.359,83.28,18.0023]
[1647000375270,14.42,83.36,83.281,6.0]
[1647000375470,136.92,83.36,83.301,52.97318615]
[1647000375875,32.4177,83.36,83.301,52.97318615]
[1647000376875,14.42,83.36,83.301,52.97318615]
[1647000377376,6.0,83.398,83.302,122.5]
[1647000377575,46.5177,83.398,83.311,122.5]
[1647000377977,11.998,83.397,83.312,11.998]
[1647000378174,11.998,83.397,83.313,122.5]
[1647000378476,11.998,83.397,83.32,59.9574]
[1647000379479,17.9908,83.39,83.331,52.49904515]
[1647000379676,11.998,83.389,83.331,52.49904515]
[1647000379878,122.5,83.388,83.3,59.9707]
[1647000380077,122.5,83.386,83.301,6.0]
[1647000380279,122.5,83.384,83.273,3.04447957]
[1647000380578,46.5177,83.398,83.273,3.04447957]
[1647000380579,122.5,83.379,83.273,3.04447957]
[1647000380778,17.9997,83.36,83.29,42.2822]
[1647000380980,122.5,83.359,83.291,54.05992921]
[1647000381176,128.5,83.359,83.291,54.05992921]
[1647000381776,18.0005,83.35,83.261,3.04447957]
[1647000381976,122.5,83.349,83.262,6.0]
[1647000382577,127.26,83.349,83.248,9.04447957]
[1647000382779,122.5,83.347,83.249,63.4118874]
[1647000382979,14.42,83.35,83.273,122.5]
[1647000383181,14.42,83.35,83.274,6.0]
[1647000383483,24.8379,83.366,83.274,9.04447957]
[1647000383681,24.8379,83.366,83.275,3.04447957]
[1647000383882,122.5,83.365,83.276,6.0]
[1647000384082,17.9981,83.36,83.29,17.9925]
[1647000384281,17.9981,83.36,83.291,60.01269198]
[1647000384683,6.0,83.359,83.291,60.01269198]
[1647000384885,6.0,83.359,83.292,3.04447957]
[1647000385081,23.6987,83.369,83.293,6.0]
[1647000385282,6.0,83.367,83.3,17.9969]
[1647000385481,6.0,83.367,83.301,6.0]
[1647000385883,6.0,83.367,83.3,3.04447957]
[1647000386084,6.0,83.367,83.301,6.0]
[1647000386282,6.0,83.367,83.3,3.04447957]
[1647000386681,11.998,83.367,83.3,3.04447957]
[1647000386885,17.9916,83.39,83.311,122.5]
[1647000387082,128.5,83.372,83.311,59.57840197]
[1647000387282,122.5,83.369,83.311,59.57840197]
[1647000387483,6.0,83.368,83.311,59.57840197]
[1647000387682,5.999,83.367,83.311,59.57840197]
[1647000387983,6.0,83.366,83.311,59.57840197]
[1647000388182,6.0,83.366,83.3,17.9962]
[1647000388384,6.0,83.366,83.24,14.42]
[1647000388586,6.0,83.366,83.208,60.03]
[1647000388587,6.001,83.365,83.272,3.04447957]
[1647000388884,122.5,83.359,83.272,3.04447957]
[1647000389482,122.5,83.359,83.273,6.0]
[1647000389483,6.001,83.358,83.273,6.0]
[1647000389889,171.7558,83.357,83.251,23.1847]
[1647000390183,6.001,83.356,83.265,6.0]
[1647000390385,122.5,83.349,83.265,6.0]